bitfinex-derivatives/quotes_ETHF0:USTF0_20230105
["timestamp","ask_amount","ask_price","bid_price","bid_amount"]
[1672961433339,2.38742703,1249.9,1249.8,4.40896053]
[1672961434588,2.98413638,1249.9,1249.8,2.6106188]
[1672961436485,6.19193638,1249.9,1249.8,2.6106188]
[1672961438374,2.98413638,1249.9,1249.8,2.6106188]
[1672961438581,6.19193638,1249.9,1249.8,2.6106188]
[1672961439316,3.2078,1249.9,1249.8,1.41163346]
[1672961441530,3.2078,1249.9,1249.8,1.40775238]
[1672961442053,10.26493355,1250.0,1249.8,1.40775238]
[1672961442259,3.2078,1249.9,1249.8,1.40775238]
[1672961447514,6.19425767,1249.9,1249.8,2.60673772]
[1672961450455,2.98645767,1249.9,1249.8,2.60673772]
[1672961450667,6.19425767,1249.9,1249.8,2.60673772]
[1672961452973,3.2078,1249.9,1249.8,2.60673772]
[1672961453400,3.2078,1249.9,1249.8,1.40775238]
[1672961455817,6.08812203,1250.0,1249.8,1.40775238]
[1672961456020,3.2078,1249.9,1249.8,1.40775238]
[1672961458442,3.2078,1249.9,1249.8,2.60673772]
[1672961458753,3.2078,1249.9,1249.8,1.40775238]
[1672961463796,6.79592203,1249.9,1249.8,1.40775238]
[1672961468010,3.58812203,1249.9,1249.8,1.40775238]
[1672961468211,6.79592203,1249.9,1249.8,1.40775238]
[1672961470105,3.2078,1249.9,1249.8,2.60673772]
[1672961473364,10.26493355,1250.0,1249.8,2.60673772]
[1672961473575,3.2078,1249.9,1249.8,2.60673772]
[1672961474417,10.26493355,1250.0,1249.8,2.60673772]
[1672961474725,3.2078,1249.9,1249.8,2.60673772]
[1672961478306,6.79592203,1249.9,1249.8,2.60673772]
[1672961480413,3.58812203,1249.9,1249.8,2.60673772]
[1672961480723,6.79592203,1249.9,1249.8,2.60673772]
[1672961481461,6.79592203,1249.9,1249.8,1.19898534]
[1672961483036,3.58812203,1249.9,1249.8,1.19898534]
[1672961483457,6.79592203,1249.9,1249.8,1.19898534]
[1672961489127,6.79592203,1249.9,1249.7,2.99732707]
[1672961489548,2.5,1249.8,1249.7,2.99732707]
[1672961490708,2.5,1249.8,1249.7,1.79834173]
[1672961492696,6.08812203,1249.8,1249.7,1.20008012]
[1672961492907,6.08812203,1249.8,1249.7,3.70008012]
[1672961493328,6.08812203,1249.8,1249.7,1.20008012]
[1672961495226,6.08812203,1249.8,1249.6,4.29834173]
[1672961495227,6.08812203,1249.8,1249.6,2.99842185]
[1672961495438,6.19749221,1249.7,1249.6,1.79834173]
[1672961497119,6.19749221,1249.7,1249.6,2.99803575]
[1672961497643,6.19749221,1249.7,1249.6,2.99803432]
[1672961497846,2.98969221,1249.7,1249.6,2.99803432]
[1672961498055,6.19749221,1249.7,1249.6,2.99803432]
[1672961498265,6.19749221,1249.7,1249.6,2.99790858]
[1672961498479,6.19749221,1249.7,1249.6,2.99790857]
[1672961498688,2.98969221,1249.7,1249.6,2.99790857]
[1672961498899,6.19749221,1249.7,1249.6,2.99790857]
[1672961499527,6.19749221,1249.7,1249.6,1.79834173]
[1672961499740,6.19749221,1249.7,1249.6,2.9978842]
[1672961500162,6.19749221,1249.7,1249.6,2.99788175]
[1672961500681,3.2078,1249.7,1249.6,1.19948108]
[1672961503418,6.19624194,1249.7,1249.6,1.19948108]
[1672961504789,6.19624194,1249.7,1249.6,2.99782281]
[1672961506471,5.59831285,1249.7,1249.6,6.69445982]
[1672961506680,5.59831285,1249.7,1249.6,4.89611809]
[1672961506890,5.59831285,1249.7,1249.6,6.69451066]
[1672961507414,5.59831285,1249.7,1249.6,4.89611809]
[1672961507626,5.59831285,1249.7,1249.6,6.69451198]
[1672961508882,5.59831285,1249.7,1249.6,4.89611809]
[1672961509098,5.59831285,1249.7,1249.6,6.31443083]
[1672961511511,4.18355118,1249.7,1249.6,14.30643083]
[1672961511722,1.79303833,1249.7,1249.6,14.90763138]
[1672961513819,1.79303833,1249.7,1249.6,17.30514396]
[1672961516770,1.79303833,1249.7,1249.6,14.30782532]
[1672961516975,1.79303833,1249.7,1249.6,17.30514396]
[1672961520233,1.79303833,1249.7,1249.6,14.30782532]
[1672961520856,4.18355118,1249.7,1249.6,14.30782532]
[1672961521601,2.39051285,1249.7,1249.6,12.88951258]
[1672961522121,4.1828448,1249.7,1249.6,14.30781137]
[1672961522334,4.1828448,1249.7,1249.6,12.88951258]
[1672961522548,2.39051285,1249.7,1249.6,12.88951258]
[1672961522753,4.18296954,1249.7,1249.6,12.88951258]
[1672961522962,2.39051285,1249.7,1249.6,12.88951258]
[1672961524446,2.39051285,1249.7,1249.6,14.68752095]
[1672961524751,5.59831285,1249.7,1249.6,14.68752095]
[1672961525066,5.59831285,1249.7,1249.6,12.29000837]
[1672961525594,5.59831285,1249.7,1249.6,12.88951258]
[1672961525796,7.39072208,1249.7,1249.6,14.30782281]
[1672961526011,5.00020923,1249.7,1249.6,14.30782281]
[1672961526533,1.79240923,1249.7,1249.6,17.30514145]
[1672961528320,1.79240923,1249.7,1249.6,14.30782281]
[1672961530325,4.18292208,1249.7,1249.6,12.88951258]
[1672961530527,1.79240923,1249.7,1249.6,14.30778738]
[1672961534411,4.18292208,1249.7,1249.6,2.39751258]
[1672961534831,2.39051285,1249.7,1249.6,4.19533103]
[1672961538824,2.39051285,1249.7,1249.6,2.39751258]
[1672961539986,4.18322573,1249.7,1249.6,3.81583958]
[1672961542302,2.39051285,1249.7,1249.6,3.81583958]
[1672961543350,1.79354286,1249.7,1249.6,6.81315822]
[1672961543667,4.29354286,1249.7,1249.6,6.81315822]
[1672961543977,1.79354286,1249.7,1249.6,6.81315822]
[1672961544188,4.18405571,1249.7,1249.6,4.41564564]
[1672961546291,2.39051285,1249.7,1249.6,4.41564564]
[1672961547126,4.18532639,1249.7,1249.6,4.41564564]
[1672961548708,1.79481354,1249.7,1249.6,4.41564564]
[1672961548919,1.79481354,1249.7,1249.6,1.418327]
[1672961551019,1.79481354,1249.7,1249.6,4.41724866]
[1672961554803,4.18532639,1249.7,1249.6,4.41724866]
[1672961555225,4.18561693,1249.7,1249.6,4.41724866]
[1672961555638,2.39051285,1249.7,1249.6,4.41724866]
[1672961555848,4.18563459,1249.7,1249.6,4.41724866]
[1672961563643,2.39051285,1249.7,1249.6,4.41724866]
[1672961564791,4.18599718,1249.7,1249.6,4.41724866]
[1672961565949,2.39051285,1249.7,1249.6,4.41724866]
[1672961566362,2.39051285,1249.7,1249.6,6.81669376]
[1672961569098,2.39051285,1249.7,1249.6,3.8177721]
[1672961569306,5.38239212,1249.7,1249.6,3.8177721]
[1672961569624,7.88239212,1249.7,1249.6,3.8177721]
[1672961569835,5.48447193,1249.7,1249.6,3.8177721]
[1672961570257,7.87841226,1249.7,1249.6,3.8177721]
[1672961570670,5.48447193,1249.7,1249.6,3.8177721]
[1672961571204,5.48447193,1249.7,1249.6,2.3994451]
[1672961572779,7.87809936,1249.7,1249.6,2.3994451]
[1672961572993,5.48447193,1249.7,1249.6,2.3994451]
[1672961574357,7.8779162,1249.7,1249.6,2.3994451]
[1672961574564,11.0857162,1249.7,1249.6,2.3994451]
[1672961574888,7.8779162,1249.7,1249.6,2.3994451]
[1672961575099,11.0857162,1249.7,1249.6,2.3994451]
[1672961576148,8.69227193,1249.7,1249.6,2.3994451]
[1672961576361,11.0856748,1249.7,1249.6,2.3994451]
[1672961576882,8.10120287,1249.7,1249.6,2.3994451]
[1672961578042,4.89340287,1249.7,1249.6,2.3994451]
[1672961578355,2.39340287,1249.7,1249.6,3.8177918]
[1672961578672,4.1885237,1249.7,1249.6,6.81671346]
[1672961581193,4.1885237,1249.7,1249.6,4.41726836]
[1672961582241,2.39340287,1249.7,1249.6,3.81690621]
[1672961584977,2.39340287,1249.7,1249.6,6.81582787]
[1672961585389,4.18859921,1249.7,1249.6,4.41726836]
[1672961585930,4.18859921,1249.7,1249.6,6.81586576]
[1672961586130,1.79519634,1249.7,1249.6,15.61706836]
[1672961586340,1.76318738,1249.8,1249.7,13.3614]
[1672961586666,2.39340287,1250.0,1249.8,0.31510572]
[1672961586982,2.39340287,1250.0,1249.9,13.38753323]
[1672961587186,2.39340287,1250.1,1249.9,11.80836147]
[1672961587391,4.89340287,1250.1,1250.0,12.28892665]
[1672961587712,2.39340287,1250.1,1250.0,13.48687747]
[1672961587924,2.39340287,1250.1,1250.0,12.28892665]
[1672961588449,2.39340287,1250.1,1250.0,14.68694142]
[1672961588651,2.39340287,1250.1,1250.0,12.89001477]
[1672961588858,2.39340287,1250.2,1250.0,17.51556086]
[1672961589075,2.39340287,1250.3,1250.1,10.98342935]
[1672961589397,4.89340287,1250.3,1250.2,2.5]
[1672961589614,2.39340287,1250.3,1250.2,2.5]
[1672961589920,5.38078152,1250.3,1250.2,2.5]
[1672961590336,2.39340287,1250.3,1250.2,2.5]
[1672961590545,2.39340287,1250.3,1250.2,3.6965788]
[1672961590864,2.39340287,1250.3,1250.2,2.5]
[1672961592858,5.60120287,1250.4,1250.2,2.5]
[1672961593597,8.10120287,1250.4,1250.2,2.5]
[1672961594129,8.58858152,1250.4,1250.2,2.5]
[1672961594333,5.60120287,1250.4,1250.2,2.5]
[1672961594543,8.10120287,1250.4,1250.2,2.5]
[1672961594968,5.60120287,1250.4,1250.2,2.5]
[1672961596016,8.10120287,1250.4,1250.2,2.5]
[1672961596225,5.60120287,1250.4,1250.2,2.5]
[1672961596650,8.10120287,1250.4,1250.2,2.5]
[1672961596963,5.60120287,1250.4,1250.2,2.5]
[1672961597811,8.10120287,1250.4,1250.2,2.5]
[1672961599176,5.60120287,1250.4,1250.2,2.5]
[1672961599386,8.10120287,1250.4,1250.2,2.5]
[1672961599593,5.60120287,1250.4,1250.2,2.5]
[1672961600331,8.10120287,1250.4,1250.2,2.5]
[1672961600534,2.39340287,1250.4,1250.2,2.5]
[1672961600856,5.60120287,1250.4,1250.2,2.5]
[1672961602743,2.39340287,1250.4,1250.2,2.5]
[1672961602951,5.60120287,1250.4,1250.2,2.5]
[1672961603266,2.39340287,1250.4,1250.2,2.5]
[1672961603474,5.60120287,1250.4,1250.2,2.5]
[1672961604946,3.2078,1250.4,1250.2,2.5]
[1672961606420,2.5,1250.3,1250.2,2.5]
[1672961606840,5.7078,1250.4,1250.2,2.5]
[1672961607998,8.10120287,1250.4,1250.2,2.5]
[1672961608310,5.7078,1250.4,1250.2,2.5]
[1672961608724,8.10120287,1250.4,1250.2,2.5]
[1672961609584,5.60120287,1250.4,1250.2,2.5]
[1672961609773,3.2078,1250.4,1250.2,10.492]
[1672961612827,5.60120287,1250.4,1250.2,10.492]
[1672961615351,2.39340287,1250.4,1250.2,10.492]
[1672961615673,5.60120287,1250.4,1250.2,10.492]
[1672961616197,8.58858152,1250.4,1250.2,10.492]
[1672961617136,2.39340287,1250.3,1250.2,10.492]
[1672961617346,4.89340287,1250.3,1250.2,10.492]
[1672961617560,2.39340287,1250.3,1250.2,10.492]
[1672961618090,4.89340287,1250.3,1250.2,10.492]
[1672961618301,2.39340287,1250.3,1250.2,10.492]
[1672961619138,5.60120287,1250.3,1250.2,10.492]
[1672961621454,2.39340287,1250.3,1250.2,10.492]
[1672961621771,5.60120287,1250.3,1250.2,10.492]
[1672961621980,2.39340287,1250.3,1250.2,10.492]
[1672961622505,2.39340287,1250.3,1250.2,11.6885788]
[1672961622706,2.39340287,1250.3,1250.2,10.492]
[1672961622917,2.39340287,1250.3,1250.2,11.6885788]
[1672961624818,2.98737865,1250.3,1250.2,12.28685055]
[1672961625018,2.98737865,1250.3,1250.2,14.68486532]
[1672961625441,5.3829716,1250.3,1250.2,12.89001477]
[1672961625651,2.39559295,1250.3,1250.2,14.30767738]
[1672961626919,5.3829716,1250.3,1250.2,12.88610044]
[1672961627129,2.98737865,1250.3,1250.2,14.30377643]
[1672961631225,2.98737865,1250.3,1250.2,12.88610044]
[1672961631435,5.38368227,1250.3,1250.2,14.30375941]
[1672961632910,2.39630362,1250.3,1250.2,14.30375941]
[1672961633121,5.38368227,1250.3,1250.2,14.30375941]
[1672961633433,2.39630362,1250.3,1250.2,14.30375941]
[1672961633644,5.38368227,1250.3,1250.2,14.30375941]
[1672961635955,2.98737865,1250.3,1250.2,14.68447785]
[1672961636159,2.98737865,1250.3,1250.2,6.69247785]
[1672961636484,6.19517865,1250.3,1250.2,4.29446308]
[1672961637429,6.19517865,1250.3,1250.2,1.79837741]
[1672961637846,3.2078,1250.3,1250.2,1.19900519]
[1672961638161,9.29592203,1250.3,1250.2,1.19900519]
[1672961638366,9.29592203,1250.3,1250.1,2.9973826]
[1672961638575,5.49465334,1250.2,1250.1,2.9973826]
[1672961638784,2.5,1250.2,1250.1,2.9973826]
[1672961638995,5.49393468,1250.2,1250.1,2.9973826]
[1672961639429,2.5,1250.2,1250.1,1.19900519]
[1672961640580,2.5,1250.2,1250.1,2.9973826]
[1672961640793,2.5,1250.2,1250.1,1.19900519]
[1672961641319,2.5,1250.2,1250.1,2.9973826]
[1672961641939,2.5,1250.2,1250.1,1.19900519]
[1672961642587,2.5,1250.2,1250.1,2.9973826]
[1672961643105,5.4935288,1250.2,1250.1,1.19900519]
[1672961643628,8.7013288,1250.2,1250.1,1.19900519]
[1672961643841,8.7013288,1250.2,1250.1,2.9973826]
[1672961644159,5.7078,1250.2,1250.1,2.9973826]
[1672961644890,8.70074423,1250.2,1250.1,2.9973826]
[1672961646368,8.70074423,1250.2,1250.1,1.19900519]
[1672961650257,8.70074423,1250.2,1250.0,3.69900519]
[1672961650461,8.70074423,1250.2,1250.0,1.19900519]
[1672961650993,3.2078,1250.1,1250.0,1.19900519]
[1672961654566,3.2078,1250.1,1249.9,2.5]
[1672961655415,1.79376879,1250.0,1249.9,4.29575025]
[1672961655623,2.29376879,1250.0,1249.9,4.29575025]
[1672961655832,1.79376879,1250.0,1249.9,4.29575025]
[1672961658143,1.79376879,1250.0,1249.9,2.5]
[1672961660564,1.79376879,1250.0,1249.9,4.29546047]
[1672961662980,1.79376879,1250.0,1249.9,5.49239109]
[1672961663609,1.79376879,1250.0,1249.9,2.99239109]
[1672961663922,1.79376879,1250.0,1249.9,1.19693062]
[1672961663923,2.89169172,1250.0,1249.9,1.19693062]
[1672961664129,2.89169172,1250.0,1249.8,3.30749681]
[1672961664345,5.00092127,1249.9,1249.8,3.30749681]
[1672961664551,7.50092127,1249.9,1249.8,3.30749681]
[1672961664757,7.50092127,1249.9,1249.8,2.11056619]
[1672961665286,7.50092127,1249.9,1249.8,3.30742296]
[1672961665501,5.00092127,1249.9,1249.8,3.30742296]
[1672961665813,5.00092127,1249.9,1249.8,3.30741896]
[1672961666012,5.00092127,1249.9,1249.8,3.30743119]
[1672961666651,1.79312127,1249.9,1249.8,3.30743119]
[1672961666853,5.00092127,1249.9,1249.8,3.30743119]
[1672961667918,5.00092127,1249.9,1249.8,2.11056619]
[1672961669073,5.00092127,1249.9,1249.8,3.30751015]
[1672961669274,5.00092127,1249.9,1249.8,3.30751505]
[1672961669912,1.79312127,1249.9,1249.8,3.30751505]
[1672961670326,1.79312127,1249.9,1249.8,2.11056619]
[1672961673802,4.18481299,1249.9,1249.8,2.11056619]
[1672961674212,7.39261299,1249.9,1249.8,2.11056619]
[1672961674957,5.59949172,1249.9,1249.8,2.11056619]
[1672961676108,2.39169172,1249.9,1249.8,1.79546047]
[1672961676320,5.59949172,1249.9,1249.8,1.79546047]
[1672961676847,5.59949172,1249.9,1249.8,4.18979414]
[1672961677260,5.59949172,1249.9,1249.8,1.79546047]
[1672961677788,5.59949172,1249.9,1249.8,4.18979414]
[1672961678532,5.7078,1249.9,1249.8,1.19866248]
[1672961678742,8.69999596,1249.9,1249.8,1.19866248]
[1672961678954,5.7078,1249.9,1249.8,1.19866248]
[1672961679153,8.70023487,1249.9,1249.8,1.19866248]
[1672961682308,6.20023487,1249.9,1249.8,1.19866248]
[1672961682524,4.18765097,1249.9,1249.8,6.68979414]
[1672961682839,7.50252586,1249.9,1249.8,4.89433367]
[1672961683044,7.39545097,1249.9,1249.8,4.89433367]
[1672961683254,5.00252586,1249.9,1249.8,6.31239362]
[1672961683463,5.00252586,1249.9,1249.8,4.89433367]
[1672961683464,7.39545097,1249.9,1249.8,4.89433367]
[1672961683789,5.00252586,1249.9,1249.8,6.31240164]
[1672961684105,7.39545097,1249.9,1249.8,6.69153757]
[1672961684628,4.18765097,1249.9,1249.8,6.69153757]
[1672961684945,4.18765097,1249.9,1249.8,4.89433367]
[1672961685888,4.18765097,1249.9,1249.8,6.69167461]
[1672961686311,4.18765097,1249.9,1249.8,4.89433367]
[1672961686730,2.39292511,1249.9,1249.8,6.69168197]
[1672961687992,5.60072511,1249.9,1249.8,6.69168197]
[1672961688303,2.39292511,1249.9,1249.8,6.69168197]
[1672961688727,5.60072511,1249.9,1249.8,6.69168197]
[1672961689042,5.60072511,1249.9,1249.8,4.89433367]
[1672961689245,5.60072511,1249.9,1249.8,6.69184508]
[1672961691458,2.39292511,1249.9,1249.8,6.69184508]
[1672961691668,5.60072511,1249.9,1249.8,6.69184508]
[1672961693457,5.60072511,1249.9,1249.8,4.19184508]
[1672961694726,2.39292511,1249.9,1249.8,4.19184508]
[1672961695047,5.60072511,1249.9,1249.8,4.19184508]
[1672961695773,5.60072511,1249.9,1249.8,4.19217996]
[1672961696515,5.60072511,1249.9,1249.8,2.39433367]
[1672961697356,5.60072511,1249.9,1249.8,4.19241226]
[1672961697557,5.60072511,1249.9,1249.8,2.39433367]
[1672961698932,5.60072511,1249.9,1249.8,3.81244228]
[1672961699555,2.39292511,1249.9,1249.8,3.81244228]
[1672961699768,5.60072511,1249.9,1249.8,3.81244228]
[1672961700612,2.39292511,1249.9,1249.8,3.81244228]
[1672961701033,2.39292511,1249.9,1249.8,6.80535936]
[1672961701238,4.18944385,1249.9,1249.8,4.41102569]
[1672961701658,1.79651874,1249.9,1249.8,4.41102569]
[1672961701872,1.79365329,1249.9,1249.8,1.41810861]
[1672961703137,1.79365329,1249.9,1249.8,4.41632891]
[1672961703550,4.1865784,1249.9,1249.8,4.41632891]
[1672961703761,2.39292511,1249.9,1249.8,6.81489544]
[1672961704392,2.39292511,1249.9,1249.8,3.81667514]
[1672961705240,4.89292511,1249.9,1249.8,3.81667514]
[1672961706190,8.10072511,1249.9,1249.8,3.81667514]
[1672961707024,5.60072511,1249.9,1249.8,3.81667514]
[1672961707238,5.60072511,1249.9,1249.8,4.41632891]
[1672961707766,7.88535998,1250.0,1249.8,4.41632891]
[1672961708077,5.38535998,1250.0,1249.9,4.89834862]
[1672961711436,5.38535998,1250.0,1249.9,6.69688326]
[1672961711758,5.38535998,1250.0,1249.9,4.89834862]
[1672961712488,2.99243487,1250.0,1249.9,1.79862792]
[1672961712704,2.99243487,1250.0,1249.9,5.49771837]
[1672961712911,5.49243487,1250.0,1249.9,5.49771837]
[1672961713649,2.99243487,1250.0,1249.9,5.49771837]
[1672961713862,5.49243487,1250.0,1249.9,5.49771837]
[1672961714805,8.70023487,1250.0,1249.9,2.99771837]
[1672961716488,2.99243487,1250.0,1249.9,2.99771837]
[1672961717014,6.20023487,1250.0,1249.9,2.99771837]
[1672961717647,2.99243487,1250.0,1249.9,2.99771837]
[1672961717858,6.20023487,1250.0,1249.9,2.99771837]
[1672961718390,8.70023487,1250.0,1249.9,2.99771837]
[1672961719221,5.7078,1250.0,1249.9,1.19909045]
[1672961719537,9.29592203,1250.0,1249.9,1.19909045]
[1672961721432,9.29592203,1250.0,1249.8,2.99836642]
[1672961721640,2.5,1249.9,1249.8,1.19909045]
[1672961722374,5.7078,1249.9,1249.8,2.99836642]
[1672961723217,5.7078,1249.9,1249.8,1.19909045]
[1672961723428,5.7078,1249.9,1249.8,2.99836642]
[1672961724053,8.7018965,1249.9,1249.8,2.99836642]
[1672961724479,8.70188127,1249.9,1249.8,2.99836642]
[1672961724791,5.7078,1249.9,1249.8,2.99836642]
[1672961725005,5.7078,1249.9,1249.8,1.19909045]
[1672961725322,8.70177286,1249.9,1249.8,2.99836642]
[1672961725522,6.20177286,1249.9,1249.8,2.99836642]
[1672961728367,2.99397286,1249.9,1249.8,2.99836642]
[1672961728582,6.20177286,1249.9,1249.8,2.99836642]
[1672961731424,2.99397286,1249.9,1249.8,2.99836642]
[1672961731739,6.20177286,1249.9,1249.8,1.79927597]
[1672961733622,3.2078,1249.9,1249.7,1.19875814]
[1672961733835,2.5,1249.8,1249.7,3.69875814]
[1672961734051,2.5,1249.8,1249.7,1.19875814]
[1672961735206,5.49070823,1249.8,1249.6,5.49803411]
[1672961735518,8.59110993,1249.7,1249.6,5.49803411]
[1672961735838,6.19850823,1249.7,1249.6,3.69875814]
[1672961737208,6.19850823,1249.7,1249.6,2.5]
[1672961737519,8.58979978,1249.7,1249.6,3.69875814]
[1672961737941,5.59909155,1249.7,1249.6,3.69875814]
[1672961738777,8.58979978,1249.7,1249.6,3.69875814]
[1672961738986,5.59909155,1249.7,1249.6,3.69875814]
[1672961740990,2.39129155,1249.7,1249.6,3.69875814]
[1672961741298,5.59909155,1249.7,1249.6,3.69875814]
[1672961745085,3.2078,1249.7,1249.6,5.49803411]
[1672961745291,3.2078,1249.7,1249.6,4.29927597]
[1672961746443,3.2078,1249.7,1249.6,5.49634896]
[1672961746765,3.2078,1249.7,1249.6,4.29927597]
[1672961747814,3.2078,1249.7,1249.6,5.49650148]
[1672961748224,5.59909155,1249.7,1249.6,2.5]
[1672961748437,5.59909155,1249.7,1249.6,3.69722551]
[1672961748862,5.59909155,1249.7,1249.6,1.19722551]
[1672961749074,11.08979978,1249.7,1249.5,2.99650148]
[1672961749284,11.08979978,1249.7,1249.5,1.19722551]
[1672961749285,2.39129155,1249.6,1249.5,1.19722551]
[1672961749499,2.39129155,1249.6,1249.5,2.99650148]
[1672961749713,2.89129155,1249.6,1249.5,2.99650148]
[1672961749911,0.5,1249.6,1249.5,2.99650148]
[1672961750549,0.5,1249.6,1249.5,5.49650148]
[1672961750756,8.09909155,1249.7,1249.5,5.49650148]
[1672961751078,11.08979978,1249.7,1249.5,5.49650148]
[1672961751389,7.88199978,1249.7,1249.5,5.49650148]
[1672961751602,3.2078,1249.6,1249.5,5.49650148]
[1672961751800,3.7078,1249.6,1249.5,5.49650148]
[1672961752011,3.7078,1249.6,1249.5,2.99650148]
[1672961752334,6.09909155,1249.6,1249.5,2.99650148]
[1672961752964,3.7078,1249.6,1249.5,2.99650148]
[1672961753178,6.09909155,1249.6,1249.5,2.99650148]
[1672961753700,3.7078,1249.6,1249.5,2.99650148]
[1672961754223,7.88199978,1249.7,1249.5,2.99650148]
[1672961754433,3.7078,1249.6,1249.5,2.99650148]
[1672961755486,3.7078,1249.6,1249.5,5.49650148]
[1672961755689,3.2078,1249.6,1249.5,5.49650148]
[1672961755895,3.7078,1249.6,1249.5,5.49650148]
[1672961756429,6.09909155,1249.6,1249.5,2.99650148]
[1672961756640,6.09909155,1249.6,1249.5,1.19722551]
[1672961757376,6.09909155,1249.6,1249.5,2.99650148]
[1672961757591,6.09909155,1249.6,1249.5,1.19722551]
[1672961758003,6.09909155,1249.6,1249.5,2.99650148]
[1672961758846,5.59909155,1249.6,1249.5,2.99650148]
[1672961759059,5.59909155,1249.6,1249.5,5.49650148]
[1672961761155,3.2078,1249.6,1249.5,4.89834862]
[1672961761575,3.2078,1249.6,1249.5,6.31674784]
[1672961761789,2.39129155,1249.7,1249.5,6.31674784]
[1672961762104,1.79361424,1249.7,1249.6,3.81368813]
[1672961762419,2.5,1249.7,1249.6,6.81190843]
[1672961762627,1.79361424,1249.8,1249.6,6.81190843]
[1672961762837,4.18490579,1249.8,1249.7,4.29642035]
[1672961763043,1.79361424,1249.8,1249.7,4.29642035]
[1672961763254,5.59909155,1249.8,1249.7,3.69767075]
[1672961763670,5.00151327,1249.8,1249.7,4.29642035]
[1672961766837,1.79371327,1249.8,1249.7,4.29642035]
[1672961768629,4.18500482,1249.8,1249.7,5.49393099]
[1672961770304,4.18500482,1249.8,1249.7,4.29642035]
[1672961771990,1.79371327,1249.8,1249.7,4.29642035]
[1672961773145,1.79371327,1249.8,1249.7,6.69185098]
[1672961773556,1.79371327,1249.8,1249.7,4.29642035]
[1672961778177,4.89129155,1249.8,1249.7,1.19758267]
[1672961778389,4.89129155,1249.8,1249.7,2.99400302]
[1672961779332,4.89129155,1249.8,1249.7,5.49400302]
[1672961779970,2.39129155,1249.8,1249.7,5.49400302]
[1672961780173,2.38778671,1249.8,1249.7,5.49400302]
[1672961781442,4.88778671,1249.8,1249.7,5.49400302]
[1672961781649,4.88778671,1249.8,1249.7,2.99400302]
[1672961782596,8.09558671,1249.8,1249.7,2.99400302]
[1672961783117,4.88778671,1249.8,1249.7,2.99400302]
[1672961783333,8.09558671,1249.8,1249.7,2.99400302]
[1672961784809,4.88778671,1249.8,1249.7,2.99400302]
[1672961785123,8.09558671,1249.8,1249.7,2.99400302]
[1672961786263,5.59558671,1249.8,1249.7,2.99400302]
[1672961786794,5.59558671,1249.8,1249.7,5.49400302]
[1672961787852,5.0015126,1249.8,1249.7,4.29642035]
[1672961788268,5.0015126,1249.8,1249.7,6.69185098]
[1672961788591,5.0015126,1249.8,1249.7,4.29642035]
[1672961789215,1.7937126,1249.8,1249.7,4.29642035]
[1672961790164,1.7937126,1249.8,1249.7,6.69185098]
[1672961793315,6.19850823,1249.9,1249.7,4.29642035]
[1672961793524,6.19850823,1249.9,1249.8,1.19807456]
[1672961793734,6.19850823,1249.9,1249.8,3.69807456]
[1672961795413,2.99070823,1249.9,1249.8,3.69807456]
[1672961795837,6.19850823,1249.9,1249.8,3.69807456]
[1672961796476,2.99070823,1249.9,1249.8,3.69807456]
[1672961796678,6.19850823,1249.9,1249.8,3.69807456]
[1672961796995,6.19850823,1249.9,1249.8,1.19807456]
[1672961797418,6.19850823,1249.9,1249.8,2.99449491]
[1672961799207,3.2078,1249.9,1249.8,1.79642035]
[1672961800577,6.08812203,1250.0,1249.8,1.79642035]
[1672961800893,6.08812203,1250.0,1249.9,1.19989568]
[1672961801101,9.29592203,1250.0,1249.9,3.69989568]
[1672961801945,9.29592203,1250.0,1249.9,1.19989568]
[1672961804784,17.28792203,1250.0,1249.8,2.99631603]
[1672961804992,17.28792203,1250.0,1249.7,2.99631603]
[1672961805308,9.30165853,1249.8,1249.7,1.19989568]
[1672961805727,9.30165853,1249.8,1249.6,2.99631603]
[1672961805931,9.30165853,1249.8,1249.7,1.19989568]
[1672961806352,9.30165853,1249.8,1249.6,2.99631603]
[1672961806561,2.99297249,1249.7,1249.6,2.99631603]
[1672961806771,5.49297249,1249.7,1249.6,2.99631603]
[1672961807310,8.70077249,1249.7,1249.6,2.99631603]
[1672961807938,8.70077249,1249.7,1249.6,1.79642035]
[1672961808675,8.70077249,1249.7,1249.6,2.99540897]
[1672961809408,5.49297249,1249.7,1249.6,2.99540897]
[1672961809926,8.70077249,1249.7,1249.6,1.79642035]
[1672961810143,5.7078,1249.7,1249.5,2.99544425]
[1672961810457,3.49095334,1249.6,1249.5,1.1990239]
[1672961812353,5.88118352,1249.6,1249.5,1.1990239]
[1672961812568,3.49095334,1249.6,1249.4,5.49544425]
[1672961812785,8.09803038,1249.5,1249.4,5.49544425]
[1672961814144,9.8906887,1249.5,1249.4,5.49544425]
[1672961814359,7.50045832,1249.5,1249.4,5.49544425]
[1672961814562,7.3906887,1249.5,1249.4,5.49544425]
[1672961814875,7.3906887,1249.5,1249.4,3.6990239]
[1672961815078,7.3906887,1249.5,1249.4,1.1990239]
[1672961815295,7.38999502,1249.5,1249.4,1.1990239]
[1672961816027,5.59803038,1249.5,1249.4,3.6990239]
[1672961816237,7.38931957,1249.5,1249.4,3.6990239]
[1672961817507,4.99908919,1249.5,1249.4,3.6990239]
[1672961817819,7.38931957,1249.5,1249.4,3.6990239]
[1672961818028,4.99908919,1249.5,1249.4,3.6990239]
[1672961823489,4.99908919,1249.5,1249.3,5.49544425]
[1672961824237,1.79128919,1249.5,1249.3,5.49544425]
[1672961824657,3.2078,1249.4,1249.3,5.49544425]
[1672961825279,3.2078,1249.4,1249.3,5.48874426]
[1672961825708,3.2078,1249.4,1249.3,4.28972036]
[1672961827073,1.79128919,1249.5,1249.3,4.28972036]
[1672961827277,4.99908919,1249.6,1249.4,2.99251088]
[1672961827487,4.99908919,1249.6,1249.5,2.5]
[1672961828224,4.99908919,1249.6,1249.5,3.69609053]
[1672961828433,3.2078,1249.6,1249.5,5.49251088]
[1672961828642,1.79128919,1249.7,1249.5,4.29642035]
[1672961828854,1.79128919,1249.7,1249.6,1.19611676]
[1672961832332,4.99908919,1249.7,1249.6,1.19611676]
[1672961833279,1.79128919,1249.7,1249.6,1.19611676]
[1672961833488,4.99908919,1249.7,1249.6,1.19611676]
[1672961836961,1.79128919,1249.7,1249.6,1.19611676]
[1672961838220,4.18151957,1249.7,1249.6,1.19611676]
[1672961840328,2.39023038,1249.7,1249.6,1.19611676]
[1672961841697,5.59803038,1249.7,1249.6,1.19611676]
[1672961842431,5.59803038,1249.7,1249.6,2.99253711]
[1672961843690,2.39023038,1249.7,1249.6,2.99253711]
[1672961843897,5.59803038,1249.7,1249.6,2.99253711]
[1672961844323,2.39023038,1249.7,1249.6,2.99253711]
[1672961844529,5.59803038,1249.7,1249.6,2.99253711]
[1672961844743,5.59803038,1249.7,1249.6,1.79642035]
[1672961845169,7.39141797,1249.7,1249.6,1.79642035]
[1672961846111,4.18361797,1249.7,1249.6,1.79642035]
[1672961846317,2.39023038,1249.7,1249.6,1.79642035]